fUST/lending_fUST_20240429
["ID","MTS","AMOUNT","RATE_DAILY","PERIOD"]
[324853113,1714373460740,-163.70979094,0.00014246,2]
[324853114,1714373460750,-500.0,0.00014246,2]
[324853115,1714373460759,-508.84,0.00014246,2]
[324853116,1714373460768,-407.47974512,0.00014246,2]
[324853117,1714373460777,-500.0,0.00014246,2]
[324853118,1714373460788,-500.0,0.00014246,2]
[324853119,1714373460797,-500.0,0.00014246,2]
[324853120,1714373460807,-500.0,0.00014246,2]
[324853121,1714373460816,-500.0,0.00014246,2]
[324853122,1714373460825,-500.0,0.00014246,2]
[324853123,1714373460836,-625.82,0.00014246,2]
[324853124,1714373460846,-500.0,0.00014246,2]
[324853125,1714373460855,-500.0,0.00014246,2]
[324853126,1714373460865,-500.0,0.00014246,2]
[324853127,1714373460874,-500.0,0.00014246,2]
[324853128,1714373460883,-500.0,0.00014246,2]
[324853129,1714373460893,-1626.12,0.00014246,2]
[324853130,1714373460902,-500.0,0.00014246,2]
[324853131,1714373460911,-500.0,0.00014246,2]
[324853132,1714373460921,-500.0,0.00014246,2]
[324853133,1714373460930,-500.0,0.00014246,2]
[324853134,1714373460940,-500.0,0.00014246,2]
[324853135,1714373460949,-367.29491943,0.00014246,2]
[324853136,1714373460959,-611.54,0.00014246,2]
[324853137,1714373460973,-199.38129154,0.00014246,2]
[324853138,1714373460982,-559.33,0.00014246,2]
[324853139,1714373460992,-500.0,0.00014246,2]
[324853140,1714373461002,-608.08,0.00014246,2]
[324853141,1714373461012,-500.0,0.00014246,2]
[324853142,1714373461022,-500.0,0.00014246,2]
[324853143,1714373461032,-500.0,0.00014246,2]
[324853144,1714373461043,-687.07,0.00014246,2]
[324853145,1714373461056,-500.0,0.00014246,2]
[324853146,1714373461067,-500.0,0.00014246,2]
[324853147,1714373461077,-504.72,0.00014246,2]
[324853148,1714373461087,-421.20741262,0.00014246,2]
[324853149,1714373461097,-500.0,0.00014246,2]
[324853150,1714373461108,-832.64,0.00014246,2]
[324853151,1714373461119,-586.71950418,0.00014246,2]
[324853152,1714373461129,-433.81369301,0.00014246,2]
[324853153,1714373461139,-500.0,0.00014246,2]
[324853154,1714373461149,-515.01,0.00014246,2]
[324853155,1714373461158,-1105.2,0.00014246,2]
[324853156,1714373461168,-630.39,0.00014246,2]
[324853157,1714373461177,-500.0,0.00014246,2]
[324853158,1714373461186,-604.09,0.00014246,2]
[324853159,1714373461197,-500.0,0.00014246,2]
[324853160,1714373461209,-500.0,0.00014246,2]
[324853161,1714373461222,-500.0,0.00014246,2]
[324853162,1714373461231,-500.0,0.00014246,2]
[324853163,1714373461240,-693.58,0.00014246,2]
[324853164,1714373461248,-500.0,0.00014246,2]
[324853165,1714373461258,-591.07,0.00014246,2]
[324853166,1714373461267,-598.14,0.00014246,2]
[324853167,1714373461278,-500.0,0.00014246,2]
[324853168,1714373461288,-673.38,0.00014246,2]
[324853169,1714373461297,-500.0,0.00014246,2]
[324853170,1714373461306,-533.22,0.00014246,2]
[324853171,1714373461315,-1230.36,0.00014246,2]
[324853172,1714373461324,-500.0,0.00014246,2]
[324853173,1714373461333,-1147.49,0.00014246,2]
[324853174,1714373461342,-500.0,0.00014246,2]
[324853175,1714373461351,-1302.49,0.00014246,2]
[324853176,1714373461361,-844.49,0.00014246,2]
[324853177,1714373461370,-500.0,0.00014246,2]
[324853178,1714373461379,-614.75,0.00014246,2]
[324853179,1714373461389,-500.0,0.00014246,2]
[324853180,1714373461398,-1388.78,0.00014246,2]
[324853181,1714373461408,-500.0,0.00014246,2]
[324853182,1714373461419,-500.0,0.00014246,2]
[324853183,1714373461429,-623.41,0.00014246,2]
[324853184,1714373461437,-501.64131969,0.00014246,2]
[324853185,1714373461447,-501.29110164,0.00014246,2]
[324853186,1714373461456,-797.81,0.00014246,2]
[324853187,1714373461465,-500.0,0.00014246,2]
[324853188,1714373461475,-590.29,0.00014246,2]
[324853189,1714373461484,-500.0,0.00014246,2]
[324853190,1714373461494,-807.83,0.00014246,2]
[324853191,1714373461503,-607.0,0.00014246,2]
[324853192,1714373461511,-500.0,0.00014246,2]
[324853193,1714373461521,-940.83,0.00014246,2]
[324853194,1714373461530,-500.0,0.00014246,2]
[324853195,1714373461539,-500.0,0.00014246,2]
[324853196,1714373461548,-500.0,0.00014246,2]
[324853197,1714373461557,-500.0,0.00014246,2]
[324853198,1714373461566,-500.0,0.00014246,2]
[324853199,1714373461575,-782.16,0.00014246,2]
[324853200,1714373461584,-500.0,0.00014246,2]
[324853201,1714373461593,-520.06,0.00014246,2]
[324853202,1714373461602,-500.0,0.00014246,2]
[324853203,1714373461612,-500.0,0.00014246,2]
[324853204,1714373461621,-500.0,0.00014246,2]
[324853205,1714373461630,-564.0,0.00014246,2]
[324853206,1714373461639,-851.11,0.00014246,2]
[324853207,1714373461648,-510.47,0.00014246,2]
[324853208,1714373461657,-500.0,0.00014246,2]
[324853209,1714373461666,-500.0,0.00014246,2]
[324853210,1714373461675,-1533.33,0.00014246,2]
[324853211,1714373461684,-1895.96,0.00014246,2]
[324853212,1714373461693,-1322.31,0.00014246,2]
[324853213,1714373461703,-500.0,0.00014246,2]
[324853214,1714373461712,-500.0,0.00014246,2]
[324853215,1714373461721,-500.0,0.00014246,2]
[324853216,1714373461730,-500.0,0.00014246,2]
[324853217,1714373461739,-1437.53,0.00014246,2]
[324853218,1714373461749,-500.0,0.00014246,2]
[324853219,1714373461758,-500.0,0.00014246,2]
[324853220,1714373461767,-1191.98,0.00014246,2]
[324853221,1714373461777,-500.0,0.00014246,2]
[324853222,1714373461786,-1134.6,0.00014246,2]
[324853223,1714373461795,-1094.75,0.00014246,2]
[324853224,1714373461804,-510.32,0.00014246,2]
[324853225,1714373461813,-2552.95,0.00014246,2]
[324853226,1714373461823,-1704.43,0.00014246,2]
[324853227,1714373461832,-1486.42,0.00014246,2]
[324853228,1714373461841,-500.0,0.00014246,2]
[324853229,1714373461850,-500.0,0.00014246,2]
[324853230,1714373461859,-500.0,0.00014246,2]
[324853231,1714373461868,-500.0,0.00014246,2]
[324853232,1714373461878,-500.0,0.00014246,2]
[324853233,1714373461887,-500.0,0.00014246,2]
[324853234,1714373461896,-500.0,0.00014246,2]
[324853235,1714373461905,-500.0,0.00014246,2]
[324853236,1714373461914,-500.0,0.00014246,2]
[324853237,1714373461923,-500.0,0.00014246,2]
[324853238,1714373461932,-325.34256236,0.00014246,2]
[324853239,1714373461941,-725.26,0.00014246,2]
[324853240,1714373461950,-500.0,0.00014246,2]
[324853241,1714373461959,-500.0,0.00014246,2]
[324853242,1714373461969,-844.8,0.00014246,2]
[324853243,1714373461978,-663.85,0.00014246,2]
[324853244,1714373461988,-515.60113613,0.00014246,2]
[324853245,1714373461997,-500.0,0.00014246,2]
[324853246,1714373462006,-590.93,0.00014246,2]
[324853247,1714373462016,-500.0,0.00014246,2]
[324853248,1714373462025,-500.0,0.00014246,2]
[324853249,1714373462114,-500.0,0.00014246,2]
[324853250,1714373462133,-500.0,0.00014246,2]
[324853251,1714373462143,-500.0,0.00014246,2]
[324853252,1714373462152,-500.0,0.00014246,2]
[324853253,1714373462161,-500.0,0.00014246,2]
[324853254,1714373462170,-500.0,0.00014246,2]
[324853255,1714373462179,-963.94,0.00014246,2]
[324853256,1714373462191,-500.0,0.00014246,2]
[324853257,1714373462203,-500.0,0.00014246,2]
[324853258,1714373462212,-790.18,0.00014246,2]
[324853259,1714373462224,-500.0,0.00014246,2]
[324853260,1714373462235,-428.05781663,0.00014246,2]
[324853261,1714373462244,-1385.15,0.00014246,2]
[324853262,1714373462253,-904.16,0.00014246,2]
[324853263,1714373462263,-556.73,0.00014246,2]
[324853264,1714373462273,-500.0,0.00014246,2]
[324853265,1714373462283,-500.0,0.00014246,2]
[324853266,1714373462292,-2612.66,0.00014246,2]
[324853267,1714373462302,-171.60319268,0.00014246,2]
[324853268,1714373462311,-500.0,0.00014246,2]
[324853269,1714373462319,-670.19,0.00014246,2]
[324853270,1714373462328,-5705.05,0.00014246,2]
[324853271,1714373462338,-500.0,0.00014246,2]
[324853272,1714373462347,-3685.88,0.00014246,2]
[324853273,1714373462356,-500.0,0.00014246,2]
[324853274,1714373462365,-500.0,0.00014246,2]
[324853275,1714373462374,-500.0,0.00014246,2]
[324853276,1714373462383,-500.0,0.00014246,2]
[324853277,1714373462392,-500.0,0.00014246,2]
[324853278,1714373462402,-500.0,0.00014246,2]
[324853279,1714373462411,-500.0,0.00014246,2]
[324853280,1714373462420,-500.0,0.00014246,2]
[324853281,1714373462429,-3055.4,0.00014246,2]
[324853282,1714373462437,-500.0,0.00014246,2]
[324853283,1714373462446,-943.99,0.00014246,2]
[324853284,1714373462456,-500.0,0.00014246,2]
[324853285,1714373462465,-500.0,0.00014246,2]
[324853286,1714373462478,-676.52,0.00014246,2]
[324853287,1714373462487,-2057.47,0.00014246,2]
[324853288,1714373462497,-598.25,0.00014246,2]
[324853289,1714373462507,-512.57720613,0.00014246,2]
[324853290,1714373462516,-1272.21,0.00014246,2]
[324853291,1714373462525,-7316.87,0.00014246,2]
[324853292,1714373462535,-500.0,0.00014246,2]
[324853293,1714373462544,-726.9,0.00014246,2]
[324853294,1714373462554,-500.0,0.00014246,2]
[324853295,1714373462564,-797.11,0.00014246,2]
[324853296,1714373462574,-604.72,0.00014246,2]
[324853297,1714373462583,-500.0,0.00014246,2]
[324853298,1714373462593,-170.38569996,0.00014246,2]
[324853299,1714373462603,-1382.46,0.00014246,2]
[324853300,1714373462614,-500.0,0.00014246,2]
[324853301,1714373462623,-2899.35,0.00014246,2]
[324853302,1714373462632,-643.79,0.00014246,2]
[324853303,1714373462641,-1036.38,0.00014246,2]
[324853304,1714373462651,-500.0,0.00014246,2]
[324853305,1714373462661,-500.0,0.00014246,2]
[324853306,1714373462670,-500.0,0.00014246,2]
[324853307,1714373462680,-500.0,0.00014246,2]
[324853308,1714373462690,-500.0,0.00014246,2]
[324853309,1714373462699,-500.0,0.00014246,2]
[324853310,1714373462708,-3783.63,0.00014246,2]
[324853311,1714373462718,-567.55,0.00014246,2]
[324853312,1714373462731,-500.0,0.00014246,2]
[324853313,1714373462741,-1762.71,0.00014246,2]
[324853314,1714373462751,-544.02,0.00014246,2]
[324853315,1714373462760,-500.0,0.00014246,2]
[324853316,1714373462771,-500.0,0.00014246,2]
[324853317,1714373462782,-909.69,0.00014246,2]
[324853318,1714373462792,-500.0,0.00014246,2]
[324853319,1714373462802,-1544.95,0.00014246,2]
[324853320,1714373462812,-566.35,0.00014246,2]
[324853321,1714373462822,-1632.08,0.00014246,2]
[324853322,1714373462832,-2536.93,0.00014246,2]
[324853323,1714373462842,-16167.34,0.00014246,2]
[324853324,1714373462851,-844.47,0.00014246,2]
[324853325,1714373462861,-3184.94,0.00014246,2]
[324853326,1714373462870,-1248.72,0.00014246,2]
[324853327,1714373462880,-705.06,0.00014246,2]
[324853328,1714373462889,-500.0,0.00014246,2]
[324853329,1714373462898,-5367.9,0.00014246,2]
[324853330,1714373462907,-500.0,0.00014246,2]
[324853331,1714373462916,-603.55,0.00014246,2]
[324853332,1714373462926,-1338.49,0.00014246,2]
[324853333,1714373462935,-500.0,0.00014246,2]
[324853334,1714373462944,-752.29,0.00014246,2]
[324853335,1714373462954,-803.38,0.00014246,2]
[324853336,1714373462963,-500.0,0.00014246,2]
[324853337,1714373462975,-12574.48,0.00014246,2]
[324853338,1714373462984,-12192.24,0.00014246,2]
[324853339,1714373462994,-500.0,0.00014246,2]
[324853340,1714373463003,-998.22,0.00014246,2]
[324853341,1714373463013,-5507.92,0.00014246,2]
[324853342,1714373463022,-589.37,0.00014246,2]
[324853343,1714373463032,-992.33,0.00014246,2]
[324853344,1714373463041,-500.0,0.00014246,2]
[324853345,1714373463052,-1332.9,0.0001449,3]
[324853346,1714373463062,-5000.0,0.000145,2]
[324853347,1714373463072,-500.0,0.0001452,2]
[324853348,1714373463082,-500.0,0.0001452,2]
[324853349,1714373463091,-500.0,0.0001452,2]
[324853350,1714373463101,-500.0,0.0001452,2]
[324853351,1714373463110,-500.0,0.0001452,2]
[324853352,1714373463122,-500.0,0.0001452,2]
[324853353,1714373463132,-500.0,0.0001452,2]
[324853354,1714373463142,-523.85,0.0001452,2]
[324853355,1714373463152,-500.0,0.0001452,2]
[324853356,1714373463162,-508.84,0.0001452,2]
[324853357,1714373463179,-500.0,0.0001452,2]
[324853358,1714373463189,-184.94182543,0.0001452,2]
[324853359,1714373463199,-500.0,0.0001452,2]
[324853360,1714373463212,-500.0,0.0001452,2]
[324853361,1714373463223,-500.0,0.0001452,2]
[324853362,1714373463233,-500.0,0.0001452,2]
[324853363,1714373463242,-625.82,0.0001452,2]
[324853364,1714373463251,-500.0,0.0001452,2]
[324853365,1714373463260,-500.0,0.0001452,2]
[324853366,1714373463269,-500.0,0.0001452,2]
[324853367,1714373463280,-500.0,0.0001452,2]
[324853368,1714373463291,-344.01403891,0.0001452,2]
[324853369,1714373463301,-1626.12,0.0001452,2]
[324853370,1714373463310,-500.0,0.0001452,2]
[324853371,1714373463319,-500.0,0.0001452,2]
[324853372,1714373463329,-500.0,0.0001452,2]
[324853373,1714373463339,-500.0,0.0001452,2]
[324853374,1714373463348,-500.0,0.0001452,2]
[324853375,1714373463358,-611.54,0.0001452,2]
[324853376,1714373463368,-559.33,0.0001452,2]
[324853377,1714373463377,-500.0,0.0001452,2]
[324853378,1714373463387,-608.08,0.0001452,2]
[324853379,1714373463397,-500.0,0.0001452,2]
[324853380,1714373463406,-500.0,0.0001452,2]
[324853381,1714373463415,-500.0,0.0001452,2]
[324853382,1714373463424,-687.07,0.0001452,2]
[324853383,1714373463434,-500.0,0.0001452,2]
[324853384,1714373463443,-500.0,0.0001452,2]
[324853385,1714373463452,-504.72,0.0001452,2]
[324853386,1714373463461,-500.0,0.0001452,2]
[324853387,1714373463473,-832.64,0.0001452,2]
[324853388,1714373463482,-500.0,0.0001452,2]
[324853389,1714373463491,-515.01,0.0001452,2]
[324853390,1714373463500,-1105.2,0.0001452,2]
[324853391,1714373463510,-630.39,0.0001452,2]
[324853392,1714373463519,-500.0,0.0001452,2]
[324853393,1714373463528,-604.09,0.0001452,2]
[324853394,1714373463537,-500.0,0.0001452,2]
[324853395,1714373463546,-500.0,0.0001452,2]
[324853396,1714373463556,-500.0,0.0001452,2]
[324853397,1714373463565,-500.0,0.0001452,2]
[324853398,1714373463575,-693.58,0.0001452,2]
[324853399,1714373463584,-500.0,0.0001452,2]
[324853400,1714373463593,-591.07,0.0001452,2]
[324853401,1714373463603,-598.14,0.0001452,2]
[324853402,1714373463612,-500.0,0.0001452,2]
[324853403,1714373463621,-673.38,0.0001452,2]
[324853404,1714373463630,-500.0,0.0001452,2]
[324853405,1714373463639,-533.22,0.0001452,2]
[324853406,1714373463648,-1230.36,0.0001452,2]
[324853407,1714373463658,-500.0,0.0001452,2]
[324853408,1714373463668,-1147.49,0.0001452,2]
[324853409,1714373463678,-500.0,0.0001452,2]
[324853410,1714373463688,-1302.49,0.0001452,2]
[324853411,1714373463697,-844.49,0.0001452,2]
[324853412,1714373463707,-500.0,0.0001452,2]
[324853413,1714373463717,-614.75,0.0001452,2]
[324853414,1714373463730,-500.0,0.0001452,2]
[324853415,1714373463738,-1388.78,0.0001452,2]
[324853416,1714373463747,-173.0,0.0001452,2]
[324853417,1714373463757,-500.0,0.0001452,2]
[324853418,1714373463767,-623.41,0.0001452,2]
[324853419,1714373463776,-797.81,0.0001452,2]
[324853420,1714373463786,-500.0,0.0001452,2]
[324853421,1714373463877,-590.29,0.0001452,2]
[324853422,1714373463888,-500.0,0.0001452,2]
[324853423,1714373463897,-807.83,0.0001452,2]
[324853424,1714373463907,-607.0,0.0001452,2]
[324853425,1714373463916,-500.0,0.0001452,2]
[324853426,1714373463925,-940.83,0.0001452,2]
[324853427,1714373463934,-500.0,0.0001452,2]
[324853428,1714373463944,-500.0,0.0001452,2]
[324853429,1714373463953,-500.0,0.0001452,2]
[324853430,1714373463962,-500.0,0.0001452,2]
[324853431,1714373463975,-503.59270218,0.0001452,2]
[324853432,1714373463985,-782.16,0.0001452,2]
[324853433,1714373463995,-500.0,0.0001452,2]
[324853434,1714373464005,-520.06,0.0001452,2]
[324853435,1714373464014,-500.0,0.0001452,2]
[324853436,1714373464024,-500.0,0.0001452,2]
[324853437,1714373464033,-500.0,0.0001452,2]
[324853438,1714373464043,-564.0,0.0001452,2]
[324853439,1714373464052,-851.11,0.0001452,2]
[324853440,1714373464061,-510.47,0.0001452,2]
[324853441,1714373464070,-500.0,0.0001452,2]
[324853442,1714373464081,-500.0,0.0001452,2]
[324853443,1714373464091,-1533.33,0.0001452,2]
[324853444,1714373464101,-1895.96,0.0001452,2]
[324853445,1714373464110,-1322.31,0.0001452,2]
[324853446,1714373464119,-500.0,0.0001452,2]
[324853447,1714373464128,-500.0,0.0001452,2]
[324853448,1714373464138,-500.0,0.0001452,2]
[324853449,1714373464147,-500.0,0.0001452,2]
[324853450,1714373464156,-1437.53,0.0001452,2]
[324853451,1714373464165,-500.0,0.0001452,2]
[324853452,1714373464175,-500.0,0.0001452,2]
[324853453,1714373464184,-1191.98,0.0001452,2]
[324853454,1714373464199,-500.0,0.0001452,2]
[324853455,1714373464209,-1134.6,0.0001452,2]
[324853456,1714373464218,-1094.75,0.0001452,2]
[324853457,1714373464236,-510.32,0.0001452,2]
[324853458,1714373464245,-2552.95,0.0001452,2]
[324853459,1714373464254,-1704.43,0.0001452,2]
[324853460,1714373464263,-1486.42,0.0001452,2]
[324853461,1714373464275,-500.0,0.0001452,2]
[324853462,1714373464285,-500.0,0.0001452,2]
[324853463,1714373464294,-500.0,0.0001452,2]
[324853464,1714373464303,-500.0,0.0001452,2]
[324853465,1714373464312,-500.0,0.0001452,2]
[324853466,1714373464322,-500.0,0.0001452,2]
[324853467,1714373464331,-500.0,0.0001452,2]
[324853468,1714373464341,-387.88498099,0.0001452,2]
[324853469,1714373464351,-500.0,0.0001452,2]
[324853470,1714373464360,-725.26,0.0001452,2]
[324853471,1714373464369,-500.0,0.0001452,2]
[324853472,1714373464378,-500.0,0.0001452,2]
[324853473,1714373464387,-844.8,0.0001452,2]
[324853474,1714373464397,-663.85,0.0001452,2]
[324853475,1714373464406,-500.0,0.0001452,2]
[324853476,1714373464415,-590.93,0.0001452,2]
[324853477,1714373464425,-357.16257504,0.0001452,2]
[324853478,1714373464434,-500.0,0.0001452,2]
[324853479,1714373464443,-500.0,0.0001452,2]
[324853480,1714373464452,-500.0,0.0001452,2]
[324853481,1714373464463,-500.0,0.0001452,2]
[324853482,1714373464478,-500.0,0.0001452,2]
[324853483,1714373464487,-532.96739926,0.0001452,2]
[324853484,1714373464495,-500.0,0.0001452,2]
[324853485,1714373464504,-963.94,0.0001452,2]
[324853486,1714373464514,-500.0,0.0001452,2]
[324853487,1714373464523,-500.0,0.0001452,2]
[324853488,1714373464532,-790.18,0.0001452,2]
[324853489,1714373464542,-500.0,0.0001452,2]
[324853490,1714373464551,-1385.15,0.0001452,2]
[324853491,1714373464560,-904.16,0.0001452,2]
[324853492,1714373464569,-556.73,0.0001452,2]
[324853493,1714373464579,-500.0,0.0001452,2]
[324853494,1714373464589,-500.0,0.0001452,2]
[324853495,1714373464599,-2612.66,0.0001452,2]
[324853496,1714373464608,-237.46709706,0.0001452,2]
[324853497,1714373464618,-670.19,0.0001452,2]
[324853498,1714373464627,-5705.05,0.0001452,2]
[324853499,1714373464636,-500.0,0.0001452,2]
[324853500,1714373464645,-3685.88,0.0001452,2]
[324853501,1714373464654,-500.0,0.0001452,2]
[324853502,1714373464663,-500.0,0.0001452,2]
[324853503,1714373464673,-500.0,0.0001452,2]
[324853504,1714373464682,-500.0,0.0001452,2]
[324853505,1714373464691,-500.0,0.0001452,2]
[324853506,1714373464701,-500.0,0.0001452,2]
[324853507,1714373464710,-500.0,0.0001452,2]
[324853508,1714373464719,-374.17169982,0.0001452,2]
[324853509,1714373464732,-3055.4,0.0001452,2]
[324853510,1714373464741,-500.0,0.0001452,2]
[324853511,1714373464751,-943.99,0.0001452,2]
[324853512,1714373464760,-500.0,0.0001452,2]
[324853513,1714373464769,-500.0,0.0001452,2]
[324853514,1714373464778,-676.52,0.0001452,2]
[324853515,1714373464787,-2057.47,0.0001452,2]
[324853516,1714373464797,-598.25,0.0001452,2]
[324853517,1714373464809,-1272.21,0.0001452,2]
[324853518,1714373464819,-7316.87,0.0001452,2]
[324853519,1714373464828,-500.0,0.0001452,2]
[324853520,1714373464837,-726.9,0.0001452,2]
[324853521,1714373464847,-500.0,0.0001452,2]
[324853522,1714373464856,-797.11,0.0001452,2]
[324853523,1714373464866,-604.72,0.0001452,2]
[324853524,1714373464875,-500.0,0.0001452,2]
[324853525,1714373464885,-1382.46,0.0001452,2]
[324853526,1714373464895,-500.0,0.0001452,2]
[324853527,1714373464904,-2899.35,0.0001452,2]
[324853528,1714373464913,-643.79,0.0001452,2]
[324853529,1714373464922,-1036.38,0.0001452,2]
[324853530,1714373464932,-500.0,0.0001452,2]
[324853531,1714373464941,-500.0,0.0001452,2]
[324853532,1714373464951,-500.0,0.0001452,2]
[324853533,1714373464960,-500.0,0.0001452,2]
[324853534,1714373464970,-500.0,0.0001452,2]
[324853535,1714373464983,-500.0,0.0001452,2]
[324853536,1714373464993,-3783.63,0.0001452,2]
[324853537,1714373465003,-567.55,0.0001452,2]
[324853538,1714373465012,-500.0,0.0001452,2]
[324853539,1714373465022,-1762.71,0.0001452,2]
[324853540,1714373465031,-544.02,0.0001452,2]
[324853541,1714373465042,-500.0,0.0001452,2]
[324853542,1714373465052,-500.0,0.0001452,2]
[324853543,1714373465063,-909.69,0.0001452,2]
[324853544,1714373465073,-500.0,0.0001452,2]
[324853545,1714373465083,-1544.95,0.0001452,2]
[324853546,1714373465094,-566.35,0.0001452,2]
[324853547,1714373465104,-1632.08,0.0001452,2]
[324853548,1714373465113,-2536.93,0.0001452,2]
[324853549,1714373465123,-16167.34,0.0001452,2]
[324853550,1714373465132,-844.47,0.0001452,2]
[324853551,1714373465142,-3184.94,0.0001452,2]
[324853552,1714373465151,-1248.72,0.0001452,2]
[324853553,1714373465160,-705.06,0.0001452,2]
[324853554,1714373465169,-500.0,0.0001452,2]
[324853555,1714373465179,-5367.9,0.0001452,2]
[324853556,1714373465189,-500.0,0.0001452,2]
[324853557,1714373465198,-603.55,0.0001452,2]
[324853558,1714373465210,-1338.49,0.0001452,2]
[324853559,1714373465219,-500.0,0.0001452,2]
[324853560,1714373465235,-752.29,0.0001452,2]
[324853561,1714373465245,-803.38,0.0001452,2]
[324853562,1714373465254,-500.0,0.0001452,2]
[324853563,1714373465264,-12574.48,0.0001452,2]
[324853564,1714373465273,-12192.24,0.0001452,2]
[324853565,1714373465283,-500.0,0.0001452,2]
[324853566,1714373465294,-998.22,0.0001452,2]
[324853567,1714373465303,-589.37,0.0001452,2]
[324853568,1714373465313,-5507.92,0.0001452,2]
[324853569,1714373465322,-992.33,0.0001452,2]
[324853570,1714373465332,-500.0,0.0001452,2]
[324853571,1714373465343,-22005.0,0.000147,2]
[324853572,1714373465352,-500.0,0.00014794,2]
[324853573,1714373465361,-500.0,0.00014794,2]
[324853574,1714373465371,-500.0,0.00014794,2]
[324853575,1714373465380,-500.0,0.00014794,2]
[324853576,1714373465390,-178.40752734,0.00014794,2]
[324853577,1714373465399,-500.0,0.00014794,2]
[324853578,1714373465409,-523.85,0.00014794,2]
[324853579,1714373465496,-227.17040703,0.00014794,2]
[324853580,1714373465516,-508.84,0.00014794,2]
[324853581,1714373465526,-500.0,0.00014794,2]
[324853582,1714373465536,-500.0,0.00014794,2]
[324853583,1714373465546,-510.81313997,0.00014794,2]
[324853584,1714373465556,-500.0,0.00014794,2]
[324853585,1714373465565,-500.0,0.00014794,2]
[324853586,1714373465575,-625.82,0.00014794,2]
[324853587,1714373465584,-500.0,0.00014794,2]
[324853588,1714373465594,-500.0,0.00014794,2]
[324853589,1714373465603,-500.0,0.00014794,2]
[324853590,1714373465612,-500.0,0.00014794,2]
[324853591,1714373465622,-1626.12,0.00014794,2]
[324853592,1714373465631,-500.0,0.00014794,2]
[324853593,1714373465640,-500.0,0.00014794,2]
[324853594,1714373465650,-500.0,0.00014794,2]
[324853595,1714373465659,-500.0,0.00014794,2]
[324853596,1714373465668,-173.88138455,0.00014794,2]
[324853597,1714373465678,-611.54,0.00014794,2]
[324853598,1714373465687,-559.33,0.00014794,2]
[324853599,1714373465697,-505.85903248,0.00014794,2]
[324853600,1714373465706,-608.08,0.00014794,2]
[324853601,1714373465716,-500.0,0.00014794,2]
[324853602,1714373465728,-500.0,0.00014794,2]
[324853603,1714373465737,-500.0,0.00014794,2]
[324853604,1714373465746,-687.07,0.00014794,2]
[324853605,1714373465755,-500.0,0.00014794,2]
[324853606,1714373465764,-500.0,0.00014794,2]
[324853607,1714373465774,-504.72,0.00014794,2]
[324853608,1714373465783,-500.0,0.00014794,2]
[324853609,1714373465793,-832.64,0.00014794,2]
[324853610,1714373465802,-500.0,0.00014794,2]
[324853611,1714373465812,-515.01,0.00014794,2]
[324853612,1714373465822,-1105.2,0.00014794,2]